[Event "5th Baskent University Open 2022"]
[Site "Ankara"]
[Date "2022.07.03"]
[Round "3.12"]
[White "Ipek, Egehan"]
[Black "Dedebas, Emre Emin"]
[Result "1/2-1/2"]
[ECO "E07"]
[WhiteElo "2196"]
[BlackElo "2321"]
[Annotator "TA"]
[PlyCount "72"]
[EventDate "2022.07.02"]
[EventType "swiss"]
[EventCountry "TUR"]
[SourceTitle "playchess.com"]
[Source "ChessBase"]
[SourceQuality "1"]
[TimeControl "5400+30"]

{[%evp 18,72,21,14,21,22,25,19,13,-6,0,-7,-6,-8,32,31,29,25,25,26,29,24,24,21,40,16,41,28,29,17,19,12,13,-98,-100,-99,-113,-128,-148,-137,-141,-200,-146,-143,-171,-986,0,0,0,0,0,0,0,0,0,0,0]} 1. Nf3 {[%emt 0:01:00]} Nf6 {[%emt 0:03:00]} 2. c4 {[%emt 0:00:30]} e6 {[%emt 0:00:30]} 3. g3 {[%emt 0:00:30]} d5 {[%emt 0:00:30]} 4. Bg2 {[%emt 0:00:30]} Be7 {[%emt 0:00:00]} 5. O-O {[%emt 0:00:00]} O-O {[%emt 0:00:00]} 6. d4 {[%emt 0:00:00]} c6 {[%emt 0:00:00]} 7. Nc3 {[%emt 0:00:30]} Nbd7 {[%emt 0:00:00]} 8. b3 {[%emt 0:00:30]} b6 {[%emt 0:01:30]} 9. Bb2 {[%emt 0:00:30]} Ba6 {[%emt 0:01:30] is now debated instead of 9...Bb7.} 10. Qd3 {[%emt 0:01:30]} Rc8 {[%emt 0:31:30] E07: Closed Catalan: Main Line (5 Nf3 0-0 6 0-0 Nbd7).} 11. Rfd1 {[%emt 0:07:30] [#] was the old line (11.e4).} Ne8 $146 {[%emt 0:18:30]} ({Predecessor:} 11... c5 12. Nb5 Bxb5 13. cxb5 Qc7 14. Rac1 Qb7 15. a4 Ne4 16. Ne5 Nxe5 17. dxe5 f5 18. exf6 Bxf6 19. Bxf6 Nxf6 {1-0 (52) Oparin,G (2624)-Esipenko,A (2609) Sochi 2018}) 12. Rac1 {[%emt 0:30:30]} Nd6 {[%emt 0:04:30][%cal Rd5c4]} 13. Nd2 {[%emt 0:05:30]} c5 {[%emt 0:04:30]} 14. Nb5 {[%emt 0:12:30]} Bxb5 {[%emt 0:05:30]} 15. cxb5 {[%emt 0:00:30]} Bf6 {[%emt 0:00:30]} 16. e3 {[%emt 0:09:30]} Rc7 {[%emt 0:12:31]} 17. Ba3 {[%emt 0:06:30]} Qb8 {[%emt 0:03:25]} 18. Rc2 {[%emt 0:02:49]} Rfc8 {[%emt 0:01:15]} 19. Rdc1 {[%emt 0:01:11]} Be7 {[%emt 0:03:04]} 20. Bf1 {[%emt 0:03:28]} Bf8 {[%emt 0:03:23]} 21. Bb2 {[%emt 0:06:52]} Be7 {[%emt 0:02:55]} 22. a4 {[%emt 0:04:45]} Bf6 {[%emt 0:00:29]} 23. Bg2 {[%emt 0:02:15]} g6 {[%emt 0:01:14]} 24. Ba3 {[%emt 0:01:16]} Nf5 {[%emt 0:00:13][%cal Rc5d4]} 25. Bh3 {[%emt 0:01:08]} (25. dxc5 $11 {keeps the balance.} Nxc5 26. Qe2) 25... cxd4 $17 {[%emt 0:00:49][%cal Bc5d4,Bd4e3][%mdl 32]} 26. Rxc7 {[%emt 0:01:10]} Rxc7 {[%emt 0:00:30]} 27. Rxc7 {[%emt 0:00:30]} Qxc7 {[%emt 0:00:30]} 28. Bxf5 {[%emt 0:00:30] And now Qc2 would win.} dxe3 {[%emt 0:00:30]} (28... gxf5 $6 29. exd4 h5 30. Nf3 $11) 29. Bxe6 {[%emt 0:00:19]} (29. Qxe3 $17 gxf5 30. Nf3) 29... exd2 {[%emt 0:01:32]} ({Worse is} 29... fxe6 30. Qxe3 Kf7 31. Nf3 $11) 30. Bxd7 {[%emt 0:01:00] [#] Strongly threatening Bc6.} Qc3 {[%emt 0:00:22]} 31. Qxd5 {[%emt 0:00:11] [#]} ({Don't blunder} 31. Qb1 $2 Qf3 32. Qf1 d1=Q $19) (31. Qe2 Be7 32. Bg4 Bxa3 33. f4) 31... Qa1+ $2 {[%emt 0:01:05]} (31... h5 $1 $19 32. Be8 Qa1+ 33. Kg2 d1=Q 34. Bxf7+ Kg7 35. Qxd1 Qxd1) 32. Kg2 $11 {[%emt 0:00:17] Threatening mate with Qa8+. The position is equal.} Qxa3 {[%emt 0:00:16]} (32... d1=Q {leads to mate.} 33. Qa8+) 33. Qxd2 {[%emt 0:00:14]} Qxb3 {[%emt 0:00:00]} 34. Qf4 {[%emt 0:01:05]} Kg7 {[%emt 0:00:16] Threatens to win with ...Qd5+.} 35. Bc6 {[%emt 0:00:00] Inhibits Qd5+.} h5 {[%emt 0:00:15]} 36. h4 {[%emt 0:00:09]} Qa2 {[%emt 0:00:38] Weighted Error Value: White=0.35/Black=0.24 (precise)} 1/2-1/2

[Event "5th Baskent University Open 2022"]
[Site "Ankara"]
[Date "2022.07.03"]
[Round "3.15"]
[White "Ozturk, Efe Hakan"]
[Black "Cansu, Batuhan"]
[Result "1-0"]
[ECO "D78"]
[WhiteElo "2115"]
[BlackElo "2083"]
[Annotator "NA RC"]
[PlyCount "113"]
[EventDate "2022.07.02"]
[EventType "swiss"]
[EventCountry "TUR"]
[SourceTitle "playchess.com"]
[Source "ChessBase"]
[SourceQuality "1"]
[TimeControl "5400+30"]

1. Nf3 {[%emt 0:01:00]} Nf6 {[%emt 0:01:00]} 2. c4 {[%emt 0:00:30]} g6 {[%emt 0:00:00]} 3. b3 {[%emt 0:01:30]} Bg7 {[%emt 0:01:00]} 4. Bb2 {[%emt 0:00:30]} O-O {[%emt 0:00:00]} 5. g3 {[%emt 0:00:00]} c6 {[%emt 0:00:00]} 6. Bg2 {[%emt 0:01:00]} d5 {[%emt 0:00:30]} 7. O-O {[%emt 0:00:30]} Re8 {[%emt 0:03:30]} 8. d4 {[%emt 0:14:30]} Bf5 {[%emt 0:00:30]} 9. Nh4 {[%emt 0:06:30]} Be6 {[%emt 0:00:00]} 10. Nd2 {[%emt 0:06:30]} a5 {[%emt 0:09:00]} 11. Qc2 {[%emt 0:08:30]} Na6 {[%emt 0:06:30]} 12. a3 {[%emt 0:06:30]} a4 {[%emt 0:10:30]} 13. bxa4 {[%emt 0:07:30]} Nb8 {[%emt 0:17:30]} 14. cxd5 {[%emt 0:13:30]} cxd5 {[%emt 0:00:00]} 15. Nb3 {[%emt 0:00:30]} b6 {[%emt 0:10:00]} 16. a5 {[%emt 0:02:30]} Nbd7 {[%emt 0:00:30]} 17. axb6 {[%emt 0:03:30]} Qxb6 {[%emt 0:00:30]} 18. Nc5 {[%emt 0:02:30]} Rec8 {[%emt 0:00:30]} 19. Rfc1 {[%emt 0:02:30]} Ne8 {[%emt 0:00:30]} 20. Nxd7 {[%emt 0:09:43]} Bxd7 {[%emt 0:00:30]} 21. Qd2 {[%emt 0:00:01]} e6 {[%emt 0:04:30]} 22. e3 {[%emt 0:02:11]} Bf8 {[%emt 0:01:30]} 23. Nf3 {[%emt 0:02:13]} Rcb8 {[%emt 0:03:30]} 24. Ne5 {[%emt 0:02:52]} Ba4 {[%emt 0:02:30]} 25. Bc3 {[%emt 0:00:26]} Nd6 {[%emt 0:03:30]} 26. Bb4 {[%emt 0:00:58]} f6 {[%emt 0:00:30]} 27. Nd3 {[%emt 0:01:56]} Bb5 {[%emt 0:10:20]} 28. Nc5 {[%emt 0:01:03]} Nc4 {[%emt 0:00:37]} 29. Qe1 {[%emt 0:01:20]} Bxc5 {[%emt 0:03:42]} 30. Bxc5 {[%emt 0:00:13]} Qc6 {[%emt 0:00:43]} 31. e4 {[%emt 0:01:04]} Re8 {[%emt 0:02:07]} 32. exd5 {[%emt 0:01:35]} exd5 {[%emt 0:00:30]} 33. Qc3 {[%emt 0:00:30]} Ra4 {[%emt 0:00:30]} 34. Re1 {[%emt 0:00:25]} Rea8 {[%emt 0:05:37]} 35. Qf3 {[%emt 0:00:10]} Rd8 {[%emt 0:02:22]} 36. Be7 {[%emt 0:00:40]} Re8 {[%emt 0:01:37]} 37. Qxd5+ {[%emt 0:00:37]} Qxd5 {[%emt 0:00:30]} 38. Bxd5+ {[%emt 0:00:00]} Kg7 {[%emt 0:00:00]} 39. Bc5 {[%emt 0:00:55]} Rxe1+ {[%emt 0:01:24]} 40. Rxe1 {[%emt 0:00:30]} Nxa3 {[%emt 0:00:30]} 41. Bb3 {[%emt 0:00:30]} Ra6 {[%emt 0:00:30]} 42. Re7+ {[%emt 0:00:30]} Kh6 {[%emt 0:00:30]} 43. Bg8 {[%emt 0:00:30]} Nc2 {[%emt 0:00:30]} 44. Rxh7+ {[%emt 0:00:30]} Kg5 {[%emt 0:00:00]} 45. Ra7 {[%emt 0:01:05]} Kf5 {[%emt 0:01:43]} 46. Rxa6 {[%emt 0:00:30]} Bxa6 {[%emt 0:00:00]} 47. f3 {[%emt 0:00:11]} Ne1 {[%emt 0:00:27]} 48. Kf2 {[%emt 0:00:15]} Nd3+ {[%emt 0:00:49]} 49. Ke3 {[%emt 0:00:01]} Nxc5 {[%emt 0:00:31]} 50. dxc5 {[%emt 0:00:02]} Bb7 {[%emt 0:00:00]} 51. h4 {[%emt 0:01:59]} Ke5 {[%emt 0:00:42]} 52. g4 {[%emt 0:00:27]} g5 {[%emt 0:00:04]} 53. h5 {[%emt 0:00:36]} f5 {[%emt 0:00:05]} 54. gxf5 {[%emt 0:00:26]} Kxf5 {[%emt 0:00:34]} 55. Bh7+ {[%emt 0:00:04]} Kf6 {[%emt 0:00:28]} 56. Be4 {[%emt 0:00:30]} Bc8 {[%emt 0:00:00]} 57. h6 {[%emt 0:00:26]} 1-0

[Event "5th Baskent University Open 2022"]
[Site "Ankara"]
[Date "2022.07.03"]
[Round "3.16"]
[White "Yildirim, Ibrahim Halil"]
[Black "Cakiroglu, Metin"]
[Result "1-0"]
[ECO "B53"]
[WhiteElo "2106"]
[BlackElo "2068"]
[Annotator "NA RC"]
[PlyCount "121"]
[EventDate "2022.07.02"]
[EventType "swiss"]
[EventCountry "TUR"]
[SourceTitle "playchess.com"]
[Source "ChessBase"]
[SourceQuality "1"]
[TimeControl "5400+30"]

1. e4 {[%emt 0:01:00]} c5 {[%emt 0:01:00]} 2. Nf3 {[%emt 0:00:30]} d6 {[%emt 0:00:30]} 3. d4 {[%emt 0:00:30]} cxd4 {[%emt 0:00:30]} 4. Qxd4 {[%emt 0:00:30]} Nf6 {[%emt 0:00:00]} 5. Nc3 {[%emt 0:05:30]} Nc6 {[%emt 0:00:00]} 6. Bb5 {[%emt 0:00:30]} Bd7 {[%emt 0:00:00]} 7. Bxc6 {[%emt 0:00:00]} Bxc6 {[%emt 0:00:00]} 8. Bg5 {[%emt 0:00:00]} e6 {[%emt 0:00:30]} 9. O-O-O {[%emt 0:00:00]} Be7 {[%emt 0:00:00]} 10. Rhe1 {[%emt 0:00:00]} O-O {[%emt 0:01:00]} 11. Kb1 {[%emt 0:00:30]} Qa5 {[%emt 0:01:30]} 12. Qd2 {[%emt 0:01:30]} Qc7 {[%emt 0:07:30]} 13. Nd4 {[%emt 0:02:30]} Rfd8 {[%emt 0:02:30]} 14. f3 {[%emt 0:01:30]} b5 {[%emt 0:04:30]} 15. Ncxb5 {[%emt 0:07:30]} Bxb5 {[%emt 0:00:30]} 16. Nxb5 {[%emt 0:00:30]} Qb6 {[%emt 0:00:30]} 17. Nd4 {[%emt 0:01:30]} a5 {[%emt 0:00:30]} 18. a4 {[%emt 0:02:30]} Rdc8 {[%emt 0:01:30]} 19. Nb5 {[%emt 0:07:30]} Rc6 {[%emt 0:04:30]} 20. Qd4 {[%emt 0:11:30]} Qb7 {[%emt 0:02:30]} 21. Re2 {[%emt 0:07:30]} h6 {[%emt 0:06:30]} 22. Bh4 {[%emt 0:02:30]} g5 {[%emt 0:13:30]} 23. Bg3 {[%emt 0:04:30]} Ne8 {[%emt 0:02:30]} 24. e5 {[%emt 0:04:30]} d5 {[%emt 0:03:30]} 25. b3 {[%emt 0:04:30]} Ng7 {[%emt 0:06:30]} 26. Nd6 {[%emt 0:07:30]} Qa6 {[%emt 0:01:30]} 27. Red2 {[%emt 0:02:30]} Rb8 {[%emt 0:01:30]} 28. Nb5 {[%emt 0:03:30]} Bb4 {[%emt 0:07:30]} 29. Re2 {[%emt 0:01:30]} Bc5 {[%emt 0:05:30]} 30. Qd3 {[%emt 0:03:08]} Nf5 {[%emt 0:00:30]} 31. Bf2 {[%emt 0:01:36]} Qb6 {[%emt 0:01:30]} 32. Bxc5 {[%emt 0:00:47]} Qxc5 {[%emt 0:00:30]} 33. Rf1 {[%emt 0:00:59]} d4 {[%emt 0:04:30]} 34. Re4 {[%emt 0:04:16]} Ne3 {[%emt 0:02:31]} 35. Rf2 {[%emt 0:00:18]} Qb4 {[%emt 0:02:35]} 36. Re2 {[%emt 0:02:52]} Nd5 {[%emt 0:02:38]} 37. Rxd4 {[%emt 0:01:34]} Qc5 {[%emt 0:00:12]} 38. Rd2 {[%emt 0:01:12]} Rxb5 {[%emt 0:01:57]} 39. axb5 {[%emt 0:02:39]} Nc3+ {[%emt 0:00:05]} 40. Qxc3 {[%emt 0:00:28]} Qxc3 {[%emt 0:00:06]} 41. bxc6 {[%emt 0:00:26]} Qxc6 {[%emt 0:00:07]} 42. Kb2 {[%emt 0:00:41]} Qc5 {[%emt 0:00:34]} 43. Re4 {[%emt 0:00:22]} h5 {[%emt 0:00:34]} 44. g3 {[%emt 0:02:37]} Kg7 {[%emt 0:00:05]} 45. Rde2 {[%emt 0:00:21]} Kg6 {[%emt 0:00:12]} 46. f4 {[%emt 0:01:41]} g4 {[%emt 0:00:57]} 47. Rc4 {[%emt 0:00:31]} Qg1 {[%emt 0:00:03]} 48. Rd2 {[%emt 0:00:43]} Qe1 {[%emt 0:00:29]} 49. Rcd4 {[%emt 0:00:58]} h4 {[%emt 0:02:05]} 50. gxh4 {[%emt 0:00:35]} Qxh4 {[%emt 0:00:06]} 51. c4 {[%emt 0:01:08]} Kf5 {[%emt 0:00:36]} 52. c5 {[%emt 0:00:26]} Qe7 {[%emt 0:02:04]} 53. c6 {[%emt 0:01:01]} Qc7 {[%emt 0:01:01]} 54. Rc4 {[%emt 0:00:25]} a4 {[%emt 0:00:41]} 55. b4 {[%emt 0:00:54]} Qa7 {[%emt 0:01:54]} 56. c7 {[%emt 0:00:54]} Qe3 {[%emt 0:00:11]} 57. c8=Q {[%emt 0:00:57]} Qxd2+ {[%emt 0:00:16]} 58. Ka3 {[%emt 0:00:19]} Qd1 {[%emt 0:00:30]} 59. Rc2 {[%emt 0:00:10]} Kxf4 {[%emt 0:00:35]} 60. Qc4+ {[%emt 0:00:34]} Kg5 {[%emt 0:00:49]} 61. Kxa4 {[%emt 0:00:10]} 1-0

[Event "5th Baskent University Open 2022"]
[Site "Ankara"]
[Date "2022.07.03"]
[Round "3.17"]
[White "Yerden, Huseyin Eren"]
[Black "Primbetov, Marat"]
[Result "1-0"]
[ECO "A62"]
[WhiteElo "2050"]
[BlackElo "2186"]
[Annotator "RC"]
[PlyCount "88"]
[EventDate "2022.07.02"]
[EventType "swiss"]
[EventCountry "TUR"]
[SourceTitle "playchess.com"]
[Source "ChessBase"]
[SourceQuality "1"]
[TimeControl "5400+30"]

1. d4 {[%emt 0:01:00]} Nf6 {[%emt 0:03:00]} 2. c4 {[%emt 0:00:00]} e6 {[%emt 0:00:30]} 3. g3 {[%emt 0:00:00]} c5 {[%emt 0:02:30]} 4. d5 {[%emt 0:00:30]} exd5 {[%emt 0:00:30]} 5. cxd5 {[%emt 0:00:30]} d6 {[%emt 0:00:30]} 6. Nc3 {[%emt 0:00:00]} a6 {[%emt 0:01:30]} 7. a4 {[%emt 0:00:00]} g6 {[%emt 0:01:30]} 8. Bg2 {[%emt 0:00:30]} Bg7 {[%emt 0:00:30]} 9. Nf3 {[%emt 0:00:00]} O-O {[%emt 0:00:30]} 10. O-O {[%emt 0:00:00]} Re8 {[%emt 0:00:00]} 11. Bf4 {[%emt 0:00:30]} Nh5 {[%emt 0:01:00]} 12. Bg5 {[%emt 0:00:00]} Qc7 {[%emt 0:01:30]} 13. e4 {[%emt 0:03:00]} h6 {[%emt 0:05:30]} 14. Be3 {[%emt 0:01:30]} Nf6 {[%emt 0:03:30]} 15. Qc2 {[%emt 0:04:30]} Nbd7 {[%emt 0:00:30]} 16. Rfe1 {[%emt 0:02:30]} Rb8 {[%emt 0:00:30]} 17. a5 {[%emt 0:02:30]} b5 {[%emt 0:01:30]} 18. axb6 {[%emt 0:00:30]} Nxb6 {[%emt 0:02:30]} 19. h3 {[%emt 0:04:30]} Nc4 {[%emt 0:11:30]} 20. Bc1 {[%emt 0:00:30]} Nd7 {[%emt 0:06:30]} 21. Bf1 {[%emt 0:09:30]} Nde5 {[%emt 0:01:30]} 22. Nh2 {[%emt 0:02:30]} Na5 {[%emt 0:02:30]} 23. Qa4 {[%emt 0:05:30]} Bxh3 {[%emt 0:11:30]} 24. Qxa5 {[%emt 0:03:30]} Qxa5 {[%emt 0:00:30]} 25. Rxa5 {[%emt 0:00:30]} Bxf1 {[%emt 0:00:30]} 26. Rxf1 {[%emt 0:00:30]} Nc4 {[%emt 0:00:30]} 27. Rxa6 {[%emt 0:00:30]} Nxb2 {[%emt 0:00:30]} 28. Bxb2 {[%emt 0:00:30]} Rxb2 {[%emt 0:00:30]} 29. Nd1 {[%emt 0:00:30]} Re2 {[%emt 0:00:30]} 30. Rxd6 {[%emt 0:00:30]} R2xe4 {[%emt 0:15:30]} 31. Nf3 {[%emt 0:00:30]} c4 {[%emt 0:06:30]} 32. Rc6 {[%emt 0:01:30]} Rd8 {[%emt 0:02:08]} 33. Ne3 {[%emt 0:00:30]} c3 {[%emt 0:00:20]} 34. Rd1 {[%emt 0:00:30]} Rd7 {[%emt 0:05:10]} 35. Kg2 {[%emt 0:00:30]} Kh7 {[%emt 0:01:00]} 36. Ng1 {[%emt 0:00:30]} Rd4 {[%emt 0:07:13]} 37. Rc1 {[%emt 0:00:30]} Rd2 {[%emt 0:04:52]} 38. Nf3 {[%emt 0:00:30]} Ra2 {[%emt 0:00:43]} 39. d6 {[%emt 0:00:30]} Ra5 {[%emt 0:02:26]} 40. Rd1 {[%emt 0:00:00]} Ra8 {[%emt 0:00:05]} 41. Nd4 {[%emt 0:01:00]} Rb8 {[%emt 0:00:26]} 42. Ndc2 {[%emt 0:01:30]} Rbd8 {[%emt 0:00:35]} 43. Kf3 {[%emt 0:01:30]} h5 {[%emt 0:00:13]} 44. Nc4 {[%emt 0:00:00]} Rb7 {[%emt 0:01:19]} 1-0

[Event "5th Baskent University Open 2022"]
[Site "Ankara"]
[Date "2022.07.03"]
[Round "3.18"]
[White "Primbetov, Kazbek"]
[Black "Kocak, Can"]
[Result "1-0"]
[ECO "B07"]
[WhiteElo "2147"]
[BlackElo "2057"]
[Annotator "NA"]
[PlyCount "144"]
[EventDate "2022.07.02"]
[EventType "swiss"]
[EventCountry "TUR"]
[SourceTitle "playchess.com"]
[Source "ChessBase"]
[SourceQuality "1"]
[TimeControl "5400+30"]

1. e4 {[%emt 0:04:00]} d6 {[%emt 0:01:00]} 2. d4 {[%emt 0:00:30]} Nf6 {[%emt 0:00:30]} 3. Nc3 {[%emt 0:00:30]} g6 {[%emt 0:00:30]} 4. g3 {[%emt 0:00:00]} Bg7 {[%emt 0:00:00]} 5. Bg2 {[%emt 0:00:00]} O-O {[%emt 0:00:00]} 6. Nge2 {[%emt 0:00:00]} Nc6 {[%emt 0:00:30]} 7. h3 {[%emt 0:00:00]} e5 {[%emt 0:00:30]} 8. Be3 {[%emt 0:00:00]} Bd7 {[%emt 0:15:30]} 9. O-O {[%emt 0:00:00]} a6 {[%emt 0:00:30]} 10. a4 {[%emt 0:10:30]} Rb8 {[%emt 0:02:30]} 11. f4 {[%emt 0:03:30]} exd4 {[%emt 0:07:30]} 12. Nxd4 {[%emt 0:00:30]} Re8 {[%emt 0:00:30]} 13. Re1 {[%emt 0:00:30]} h5 {[%emt 0:09:30]} 14. Rb1 {[%emt 0:15:30]} Qc8 {[%emt 0:00:30]} 15. Nxc6 {[%emt 0:05:30]} bxc6 {[%emt 0:09:30]} 16. Kh2 {[%emt 0:00:30]} Rb4 {[%emt 0:01:30]} 17. Qd3 {[%emt 0:09:30]} Be6 {[%emt 0:10:30]} 18. b3 {[%emt 0:00:30]} c5 {[%emt 0:03:30]} 19. e5 {[%emt 0:07:30]} Nd7 {[%emt 0:12:30]} 20. Nd5 {[%emt 0:11:30]} Rb8 {[%emt 0:08:02]} 21. exd6 {[%emt 0:01:30]} cxd6 {[%emt 0:00:04]} 22. Bf2 {[%emt 0:00:30]} Nb6 {[%emt 0:05:12]} 23. Ne3 {[%emt 0:06:30]} Rd8 {[%emt 0:03:07]} 24. a5 {[%emt 0:04:33]} Nd7 {[%emt 0:00:13]} 25. g4 {[%emt 0:04:57]} hxg4 {[%emt 0:00:53]} 26. hxg4 {[%emt 0:00:02]} Nf6 {[%emt 0:00:28]} 27. g5 {[%emt 0:06:35]} Nh5 {[%emt 0:00:30]} 28. Bg3 {[%emt 0:00:00]} Rb4 {[%emt 0:00:54]} 29. c4 {[%emt 0:02:14]} Qd7 {[%emt 0:03:05]} 30. Bf3 {[%emt 0:01:43]} Nxg3 {[%emt 0:01:24]} 31. Kxg3 {[%emt 0:00:01]} Rdb8 {[%emt 0:00:12]} 32. Bd5 {[%emt 0:03:27]} Bf5 {[%emt 0:03:48]} 33. Nxf5 {[%emt 0:02:17]} Qxf5 {[%emt 0:00:03]} 34. Qxf5 {[%emt 0:00:31]} gxf5 {[%emt 0:00:02]} 35. g6 {[%emt 0:02:09]} Rxb3+ {[%emt 0:00:02]} 36. Rxb3 {[%emt 0:00:30]} Rxb3+ {[%emt 0:00:03]} 37. Kg2 {[%emt 0:00:30]} Rb2+ {[%emt 0:00:01]} 38. Kf1 {[%emt 0:00:31]} Bf8 {[%emt 0:00:02]} 39. gxf7+ {[%emt 0:00:31]} Kg7 {[%emt 0:00:01]} 40. Re3 {[%emt 0:00:23]} Ra2 {[%emt 0:00:56]} 41. Rg3+ {[%emt 0:00:51]} Kf6 {[%emt 0:00:01]} 42. Rg8 {[%emt 0:00:31]} Ke7 {[%emt 0:00:08]} 43. Rg5 {[%emt 0:00:25]} Kf6 {[%emt 0:00:13]} 44. Rg8 {[%emt 0:00:18]} Ke7 {[%emt 0:00:01]} 45. Rg5 {[%emt 0:00:11]} Rxa5 {[%emt 0:03:12]} 46. Rxf5 {[%emt 0:00:46]} Ra1+ {[%emt 0:00:02]} 47. Ke2 {[%emt 0:00:30]} a5 {[%emt 0:00:01]} 48. Kd2 {[%emt 0:00:28]} a4 {[%emt 0:00:28]} 49. Kc2 {[%emt 0:00:40]} a3 {[%emt 0:00:13]} 50. Rg5 {[%emt 0:00:02]} Rf1 {[%emt 0:02:29]} 51. Kb3 {[%emt 0:00:07]} Rxf4 {[%emt 0:00:26]} 52. Kxa3 {[%emt 0:00:05]} Rf1 {[%emt 0:01:00]} 53. Kb3 {[%emt 0:00:39]} Bh6 {[%emt 0:00:47]} 54. Rg6 {[%emt 0:00:45]} Rf6 {[%emt 0:00:30]} 55. Rg8 {[%emt 0:00:00]} Bf8 {[%emt 0:00:09]} 56. Ka4 {[%emt 0:00:07]} Rf1 {[%emt 0:02:31]} 57. Kb5 {[%emt 0:00:07]} Rf6 {[%emt 0:00:26]} 58. Kc6 {[%emt 0:00:16]} Rh6 {[%emt 0:00:05]} 59. Rg3 {[%emt 0:01:11]} Rh8 {[%emt 0:00:31]} 60. Re3+ {[%emt 0:01:14]} Kf6 {[%emt 0:00:00]} 61. Kd7 {[%emt 0:00:05]} Rh5 {[%emt 0:01:11]} 62. Rf3+ {[%emt 0:01:26]} Kg7 {[%emt 0:00:09]} 63. Rg3+ {[%emt 0:00:24]} Kf6 {[%emt 0:00:05]} 64. Ke8 {[%emt 0:00:30]} Bh6 {[%emt 0:00:54]} 65. Rf3+ {[%emt 0:00:57]} Ke5 {[%emt 0:00:52]} 66. f8=Q {[%emt 0:00:30]} Bxf8 {[%emt 0:00:00]} 67. Kxf8 {[%emt 0:00:25]} Kd4 {[%emt 0:00:00]} 68. Rf4+ {[%emt 0:00:30]} Ke5 {[%emt 0:00:09]} 69. Re4+ {[%emt 0:00:30]} Kf5 {[%emt 0:00:00]} 70. Ke7 {[%emt 0:00:00]} Rh6 {[%emt 0:00:22]} 71. Re6 {[%emt 0:00:13]} Rxe6+ {[%emt 0:00:30]} 72. Bxe6+ {[%emt 0:00:30]} Ke5 {[%emt 0:00:00]} 1-0

[Event "5th Baskent University Open 2022"]
[Site "Ankara"]
[Date "2022.07.03"]
[Round "3.19"]
[White "Maruflu, Enes Yusuf"]
[Black "Cevizci, Yusuf Baran"]
[Result "1-0"]
[ECO "D78"]
[WhiteElo "2046"]
[BlackElo "2144"]
[Annotator "NA RC"]
[PlyCount "83"]
[EventDate "2022.07.02"]
[EventType "swiss"]
[EventCountry "TUR"]
[SourceTitle "playchess.com"]
[Source "ChessBase"]
[SourceQuality "1"]
[TimeControl "5400+30"]

1. d4 {[%emt 0:01:00]} d5 {[%emt 0:01:00]} 2. Nf3 {[%emt 0:00:30]} Nf6 {[%emt 0:00:00]} 3. g3 {[%emt 0:00:30]} g6 {[%emt 0:00:00]} 4. Bg2 {[%emt 0:00:00]} Bg7 {[%emt 0:00:30]} 5. O-O {[%emt 0:00:00]} O-O {[%emt 0:00:30]} 6. Nbd2 {[%emt 0:00:30]} c6 {[%emt 0:00:30]} 7. c4 {[%emt 0:00:30]} Bf5 {[%emt 0:00:00]} 8. b3 {[%emt 0:00:30]} Nbd7 {[%emt 0:00:00]} 9. Bb2 {[%emt 0:01:30]} Ne4 {[%emt 0:02:30]} 10. Nh4 {[%emt 0:05:30]} Nxd2 {[%emt 0:00:30]} 11. Qxd2 {[%emt 0:00:30]} Be6 {[%emt 0:00:00]} 12. cxd5 {[%emt 0:00:30]} cxd5 {[%emt 0:00:00]} 13. Rac1 {[%emt 0:00:30]} a5 {[%emt 0:02:30]} 14. e3 {[%emt 0:08:30]} Nb8 {[%emt 0:01:30]} 15. Rc5 {[%emt 0:02:30]} a4 {[%emt 0:07:30]} 16. Nf3 {[%emt 0:07:30]} Na6 {[%emt 0:08:30]} 17. Rc3 {[%emt 0:04:30]} Qa5 {[%emt 0:05:30]} 18. a3 {[%emt 0:02:30]} Qb6 {[%emt 0:06:30]} 19. bxa4 {[%emt 0:03:30]} h6 {[%emt 0:03:30]} 20. Ne1 {[%emt 0:05:30]} Nb8 {[%emt 0:06:30]} 21. Nd3 {[%emt 0:01:30]} Qd6 {[%emt 0:03:30]} 22. Rb3 {[%emt 0:03:30]} Bc8 {[%emt 0:05:30]} 23. a5 {[%emt 0:03:30]} Nc6 {[%emt 0:01:30]} 24. Rb5 {[%emt 0:02:30]} e6 {[%emt 0:00:00]} 25. Bc3 {[%emt 0:03:30]} Qc7 {[%emt 0:04:00]} 26. Rfb1 {[%emt 0:01:30]} Bf6 {[%emt 0:01:30]} 27. Nc5 {[%emt 0:03:30]} Ra7 {[%emt 0:00:30]} 28. Rb6 {[%emt 0:02:30]} Bd8 {[%emt 0:00:30]} 29. e4 {[%emt 0:02:30]} dxe4 {[%emt 0:01:30]} 30. Qxh6 {[%emt 0:00:30]} Bf6 {[%emt 0:00:30]} 31. Nxe4 {[%emt 0:02:30]} Bg7 {[%emt 0:00:30]} 32. Qh4 {[%emt 0:01:30]} f5 {[%emt 0:04:30]} 33. Ng5 {[%emt 0:01:30]} Bf6 {[%emt 0:00:00]} 34. a6 {[%emt 0:06:30]} Nd8 {[%emt 0:03:00]} 35. axb7 {[%emt 0:00:30]} Bxb7 {[%emt 0:00:30]} 36. Bxb7 {[%emt 0:01:30]} Rxb7 {[%emt 0:00:00]} 37. Rxb7 {[%emt 0:00:30]} Nxb7 {[%emt 0:00:00]} 38. Qh6 {[%emt 0:01:30]} Bxg5 {[%emt 0:00:30]} 39. Qxg6+ {[%emt 0:00:30]} Kh8 {[%emt 0:00:30]} 40. Qh5+ {[%emt 0:00:30]} Kg8 {[%emt 0:00:30]} 41. Qxg5+ {[%emt 0:00:30]} Kf7 {[%emt 0:00:00]} 42. d5 {[%emt 0:01:30]} 1-0